[Event "Early-Titled-Tuesday-Blitz-November-28-2023"]
[Site "Chess.com"]
[Date "2023.11.28"]
[Round "2"]
[White "Lady_Nika"]
[Black "Sulthankan"]
[Result "1-0"]
[WhiteElo "2580"]
[BlackElo "2348"]
[TimeControl "180+1"]
[EndTime "8:17:08 PST"]
[Termination "Lady_Nika won by resignation"]

1. c4 {[%clk 0:03:00.9]} 1... e5 {[%clk 0:02:59.1]} 2. Nc3 {[%clk 0:03:00.9]}
2... Nf6 {[%clk 0:02:59]} 3. g3 {[%clk 0:03:00.6]} 3... c6 {[%clk 0:02:58.5]} 4.
Bg2 {[%clk 0:03:00.7]} 4... d5 {[%clk 0:02:59.1]} 5. cxd5 {[%clk 0:03:00]} 5...
cxd5 {[%clk 0:03:00]} 6. d4 {[%clk 0:03:00.3]} 6... exd4 {[%clk 0:02:56.6]} 7.
Qxd4 {[%clk 0:02:59.9]} 7... Nc6 {[%clk 0:02:56.6]} 8. Qa4 {[%clk 0:02:59.8]}
8... d4 {[%clk 0:02:53.6]} 9. Ne4 {[%clk 0:02:47.1]} 9... Bb4+ {[%clk
0:02:52.6]} 10. Bd2 {[%clk 0:02:44.9]} 10... Bxd2+ {[%clk 0:02:49.2]} 11. Nxd2
{[%clk 0:02:44.5]} 11... O-O {[%clk 0:02:49.5]} 12. Ngf3 {[%clk 0:02:41.1]}
12... Re8 {[%clk 0:02:45]} 13. Kf1 {[%clk 0:02:23.6]} 13... Bf5 {[%clk
0:02:17.9]} 14. Re1 {[%clk 0:02:21.2]} 14... Qd7 {[%clk 0:01:59.7]} 15. h4
{[%clk 0:02:17.2]} 15... Re7 {[%clk 0:01:44.8]} 16. h5 {[%clk 0:02:12.8]} 16...
Rae8 {[%clk 0:01:43.8]} 17. h6 {[%clk 0:02:11.9]} 17... g6 {[%clk 0:01:41]} 18.
Nh4 {[%clk 0:02:10.9]} 18... Be6 {[%clk 0:01:37.9]} 19. Bxc6 {[%clk 0:01:57]}
19... bxc6 {[%clk 0:01:38]} 20. Nhf3 {[%clk 0:01:53.3]} 20... d3 {[%clk
0:01:18.8]} 21. e3 {[%clk 0:01:40.6]} 21... Bd5 {[%clk 0:01:06.8]} 22. Qf4
{[%clk 0:01:33.5]} 22... Ne4 {[%clk 0:00:57.5]} 23. Nxe4 {[%clk 0:01:33.1]}
23... Rxe4 {[%clk 0:00:58.4]} 24. Qf6 {[%clk 0:01:30.4]} 24... Kf8 {[%clk
0:00:52.9]} 25. Ng5 {[%clk 0:01:24.1]} 25... R8e5 {[%clk 0:00:34.1]} 26. Nxh7+
{[%clk 0:01:21.6]} 26... Ke8 {[%clk 0:00:33.8]} 27. Qh8+ {[%clk 0:01:17.5]}
27... Ke7 {[%clk 0:00:33.1]} 28. Nf6 {[%clk 0:01:12.4]} 28... Qf5 {[%clk
0:00:11.9]} 29. h7 {[%clk 0:01:03.2]} 29... Rxe3 {[%clk 0:00:09.4]} 30. Rxe3
{[%clk 0:00:58.7]} 30... Bxh1 {[%clk 0:00:07]} 31. Qe8+ {[%clk 0:00:57.5]} 31...
Kd6 {[%clk 0:00:07]} 32. Qxe5+ {[%clk 0:00:54.3]} 32... Qxe5 {[%clk 0:00:07.5]}
33. Rxe5 {[%clk 0:00:54.5]} 33... d2 {[%clk 0:00:08.1]} 34. Ke2 {[%clk
0:00:54.6]} 34... Kxe5 {[%clk 0:00:08.6]} 1-0

[Event "Early-Titled-Tuesday-Blitz-November-28-2023"]
[Site "Chess.com"]
[Date "2023.11.28"]
[Round "2"]
[White "Witty_Alien"]
[Black "LiemLe"]
[Result "0-1"]
[WhiteElo "2253"]
[BlackElo "3126"]
[TimeControl "180+1"]
[EndTime "8:17:10 PST"]
[Termination "LiemLe won by checkmate"]

1. e4 {[%clk 0:03:00.9]} 1... c5 {[%clk 0:02:59.7]} 2. Nf3 {[%clk 0:03:01]} 2...
Nc6 {[%clk 0:03:00.3]} 3. d4 {[%clk 0:03:00.5]} 3... cxd4 {[%clk 0:03:01.2]} 4.
c3 {[%clk 0:02:59.3]} 4... dxc3 {[%clk 0:03:00.4]} 5. Bc4 {[%clk 0:02:59.6]}
5... d6 {[%clk 0:02:52.8]} 6. O-O {[%clk 0:02:55.5]} 6... a6 {[%clk 0:02:52.5]}
7. Re1 {[%clk 0:02:55.5]} 7... Nf6 {[%clk 0:02:50.7]} 8. Nxc3 {[%clk 0:02:40.6]}
8... Bg4 {[%clk 0:02:43.9]} 9. e5 {[%clk 0:01:51.5]} 9... Bxf3 {[%clk
0:02:17.5]} 10. Qxf3 {[%clk 0:01:48.8]} 10... dxe5 {[%clk 0:02:10.9]} 11. Bg5
{[%clk 0:01:30.9]} 11... h6 {[%clk 0:01:46.2]} 12. Bxf6 {[%clk 0:01:21]} 12...
gxf6 {[%clk 0:01:47.1]} 13. Rad1 {[%clk 0:01:20.6]} 13... Nd4 {[%clk 0:01:31.9]}
14. Qh5 {[%clk 0:00:33.7]} 14... Rh7 {[%clk 0:01:24]} 15. Nd5 {[%clk 0:00:18]}
15... e6 {[%clk 0:01:19.8]} 16. Rxd4 {[%clk 0:00:12.6]} 16... exd5 {[%clk
0:01:09.8]} 17. Rxd5 {[%clk 0:00:07]} 17... Qc7 {[%clk 0:01:10.2]} 18. Bb3
{[%clk 0:00:04.4]} 18... Rd8 {[%clk 0:01:03.2]} 19. Qf5 {[%clk 0:00:04.4]} 19...
Rxd5 {[%clk 0:01:00.1]} 20. Bxd5 {[%clk 0:00:05.3]} 20... Qd7 {[%clk 0:00:34.5]}
21. Qxh7 {[%clk 0:00:02.2]} 21... Qxd5 {[%clk 0:00:34.8]} 22. Rc1 {[%clk
0:00:02.4]} 22... Bc5 {[%clk 0:00:30.4]} 23. Qf5 {[%clk 0:00:02.2]} 23... Ke7
{[%clk 0:00:28.3]} 24. b4 {[%clk 0:00:02.4]} 24... Bd6 {[%clk 0:00:25]} 25. Rc8
{[%clk 0:00:01.9]} 25... Qd1# {[%clk 0:00:24.6]} 0-1

[Event "Early-Titled-Tuesday-Blitz-November-28-2023"]
[Site "Chess.com"]
[Date "2023.11.28"]
[Round "2"]
[White "carloseduar100"]
[Black "F-Ghaith2021"]
[Result "0-1"]
[WhiteElo "2305"]
[BlackElo "2518"]
[TimeControl "180+1"]
[EndTime "8:17:10 PST"]
[Termination "F-Ghaith2021 won by checkmate"]

1. e4 {[%clk 0:03:00]} 1... c6 {[%clk 0:02:59.6]} 2. Nf3 {[%clk 0:03:00]} 2...
d5 {[%clk 0:02:59.1]} 3. Nc3 {[%clk 0:03:00.9]} 3... dxe4 {[%clk 0:02:58.1]} 4.
Nxe4 {[%clk 0:03:01.1]} 4... Nf6 {[%clk 0:02:57.8]} 5. Nxf6+ {[%clk 0:03:01.8]}
5... exf6 {[%clk 0:02:58.7]} 6. d4 {[%clk 0:03:01.8]} 6... Bd6 {[%clk 0:02:58]}
7. c3 {[%clk 0:03:02]} 7... O-O {[%clk 0:02:56.8]} 8. Be2 {[%clk 0:03:02.3]}
8... Nd7 {[%clk 0:02:56.5]} 9. O-O {[%clk 0:03:02.7]} 9... Re8 {[%clk
0:02:56.9]} 10. h3 {[%clk 0:03:03.1]} 10... Nf8 {[%clk 0:02:57.1]} 11. Re1
{[%clk 0:03:02.6]} 11... Bc7 {[%clk 0:02:52.4]} 12. Be3 {[%clk 0:03:02.6]} 12...
Qd6 {[%clk 0:02:51.4]} 13. Qd2 {[%clk 0:03:02.9]} 13... Bf5 {[%clk 0:02:50.6]}
14. Bf1 {[%clk 0:02:58.8]} 14... Be4 {[%clk 0:02:48.4]} 15. Bd3 {[%clk
0:02:41.3]} 15... Bxf3 {[%clk 0:02:46.4]} 16. gxf3 {[%clk 0:02:42.2]} 16... Qh2+
{[%clk 0:02:39.9]} 17. Kf1 {[%clk 0:02:42.7]} 17... Bf4 {[%clk 0:01:45.4]} 18.
Rac1 {[%clk 0:02:14.7]} 18... Re7 {[%clk 0:01:28.4]} 19. Be4 {[%clk 0:02:14.6]}
19... Bxe3 {[%clk 0:01:15.2]} 20. Rxe3 {[%clk 0:02:14.7]} 20... Rae8 {[%clk
0:01:06.5]} 21. Rce1 {[%clk 0:02:15.1]} 21... g6 {[%clk 0:01:00.5]} 22. Ke2
{[%clk 0:01:56.7]} 22... f5 {[%clk 0:00:59.7]} 23. Bd3 {[%clk 0:01:56.7]} 23...
Rxe3+ {[%clk 0:00:59.5]} 24. Qxe3 {[%clk 0:01:53.7]} 24... Rxe3+ {[%clk
0:00:59.3]} 25. Kxe3 {[%clk 0:01:54.6]} 25... Ne6 {[%clk 0:00:58]} 26. Be2
{[%clk 0:01:42.8]} 26... Qf4+ {[%clk 0:00:54]} 27. Kd3 {[%clk 0:01:43]} 27... c5
{[%clk 0:00:54.2]} 28. dxc5 {[%clk 0:01:40.5]} 28... Nxc5+ {[%clk 0:00:53.1]}
29. Kc2 {[%clk 0:01:41.4]} 29... Qe5 {[%clk 0:00:50.9]} 30. Kd2 {[%clk
0:01:36.8]} 30... Qd6+ {[%clk 0:00:48.8]} 31. Kc2 {[%clk 0:01:36.9]} 31... Ne6
{[%clk 0:00:48.9]} 32. Rd1 {[%clk 0:01:36.8]} 32... Qb6 {[%clk 0:00:46.9]} 33.
Rf1 {[%clk 0:01:31.6]} 33... Nf4 {[%clk 0:00:46.2]} 34. Bc4 {[%clk 0:01:30.6]}
34... Qc6 {[%clk 0:00:46.3]} 35. b3 {[%clk 0:01:24.7]} 35... b5 {[%clk
0:00:46.1]} 36. Bd3 {[%clk 0:01:18.5]} 36... Nxd3 {[%clk 0:00:44.8]} 37. Kxd3
{[%clk 0:01:19.4]} 37... Qxf3+ {[%clk 0:00:45.2]} 38. Kd2 {[%clk 0:01:18.9]}
38... a5 {[%clk 0:00:44.6]} 39. h4 {[%clk 0:01:16.2]} 39... h6 {[%clk
0:00:42.7]} 40. Re1 {[%clk 0:01:14.5]} 40... Qxf2+ {[%clk 0:00:42.3]} 41. Re2
{[%clk 0:01:15.4]} 41... Qxh4 {[%clk 0:00:40.5]} 42. Kc2 {[%clk 0:01:15.9]}
42... h5 {[%clk 0:00:38.4]} 43. Kb2 {[%clk 0:01:16.1]} 43... Qf6 {[%clk
0:00:37.6]} 44. Ka3 {[%clk 0:01:13.2]} 44... Qxc3 {[%clk 0:00:25.5]} 45. Re8+
{[%clk 0:01:11.8]} 45... Kh7 {[%clk 0:00:21.6]} 46. Re4 {[%clk 0:01:11.3]} 46...
Qc1# {[%clk 0:00:19.9]} 0-1

[Event "Early-Titled-Tuesday-Blitz-November-28-2023"]
[Site "Chess.com"]
[Date "2023.11.28"]
[Round "2"]
[White "fighter2jz"]
[Black "LeoLV10"]
[Result "1-0"]
[WhiteElo "2788"]
[BlackElo "2530"]
[TimeControl "180+1"]
[EndTime "8:17:11 PST"]
[Termination "fighter2jz won by checkmate"]

1. e4 {[%clk 0:02:56.3]} 1... c6 {[%clk 0:02:58.8]} 2. d4 {[%clk 0:02:55.9]}
2... d5 {[%clk 0:02:59.7]} 3. e5 {[%clk 0:02:56.2]} 3... Bf5 {[%clk 0:02:59.5]}
4. Bd3 {[%clk 0:02:55.6]} 4... Bxd3 {[%clk 0:02:59.2]} 5. Qxd3 {[%clk
0:02:56.5]} 5... e6 {[%clk 0:02:52.8]} 6. Ne2 {[%clk 0:02:56.2]} 6... Qa5+
{[%clk 0:02:52.6]} 7. Nd2 {[%clk 0:02:48.3]} 7... c5 {[%clk 0:02:52.1]} 8. O-O
{[%clk 0:02:18.5]} 8... Qa6 {[%clk 0:02:46.9]} 9. c4 {[%clk 0:02:17.9]} 9... Nc6
{[%clk 0:02:45.4]} 10. b3 {[%clk 0:02:10.9]} 10... Rd8 {[%clk 0:02:43.4]} 11.
dxc5 {[%clk 0:02:05.9]} 11... Bxc5 {[%clk 0:02:36.9]} 12. Qg3 {[%clk 0:02:05.5]}
12... g6 {[%clk 0:02:26.2]} 13. Nf3 {[%clk 0:01:23.1]} 13... dxc4 {[%clk
0:02:22.8]} 14. Bg5 {[%clk 0:01:23.4]} 14... Be7 {[%clk 0:02:21.5]} 15. bxc4
{[%clk 0:01:21.3]} 15... h6 {[%clk 0:02:20.6]} 16. Be3 {[%clk 0:01:14.7]} 16...
Qxc4 {[%clk 0:02:17.6]} 17. Nf4 {[%clk 0:01:15.2]} 17... g5 {[%clk 0:01:57.6]}
18. Nh5 {[%clk 0:01:11.7]} 18... Qe4 {[%clk 0:01:53.1]} 19. h3 {[%clk
0:01:00.7]} 19... Qg6 {[%clk 0:01:53]} 20. Qg4 {[%clk 0:01:00.7]} 20... Qf5
{[%clk 0:01:47.5]} 21. Qa4 {[%clk 0:00:59.2]} 21... Qg6 {[%clk 0:01:43.6]} 22.
Qg4 {[%clk 0:00:58]} 22... Rd5 {[%clk 0:01:13.4]} 23. Rab1 {[%clk 0:00:52.2]}
23... b6 {[%clk 0:00:46.9]} 24. Rfc1 {[%clk 0:00:37.5]} 24... Kd8 {[%clk
0:00:34.5]} 25. Rb3 {[%clk 0:00:34.1]} 25... Kd7 {[%clk 0:00:09.8]} 26. Qa4
{[%clk 0:00:31.6]} 26... Qxh5 {[%clk 0:00:09.1]} 27. Qxc6+ {[%clk 0:00:31.5]}
27... Kd8 {[%clk 0:00:09.7]} 28. Qc8# {[%clk 0:00:32.4]} 1-0

[Event "Early-Titled-Tuesday-Blitz-November-28-2023"]
[Site "Chess.com"]
[Date "2023.11.28"]
[Round "2"]
[White "InitiatingASC"]
[Black "elohunter1999"]
[Result "0-1"]
[WhiteElo "2322"]
[BlackElo "2691"]
[TimeControl "180+1"]
[EndTime "8:17:11 PST"]
[Termination "elohunter1999 won by checkmate"]

1. d4 {[%clk 0:02:59.5]} 1... d5 {[%clk 0:02:45.7]} 2. c4 {[%clk 0:02:58]} 2...
c6 {[%clk 0:02:45.4]} 3. Nf3 {[%clk 0:02:52.8]} 3... Nf6 {[%clk 0:02:45.2]} 4.
g3 {[%clk 0:02:53.1]} 4... Bf5 {[%clk 0:02:43.2]} 5. Bg2 {[%clk 0:02:52.8]} 5...
e6 {[%clk 0:02:42.9]} 6. O-O {[%clk 0:02:52.5]} 6... Be7 {[%clk 0:02:42.7]} 7.
b3 {[%clk 0:02:51.3]} 7... h6 {[%clk 0:02:42.2]} 8. Bb2 {[%clk 0:02:50.8]} 8...
O-O {[%clk 0:02:42.4]} 9. Ne5 {[%clk 0:02:51.5]} 9... Nbd7 {[%clk 0:02:42.3]}
10. Nd2 {[%clk 0:02:50.2]} 10... Nxe5 {[%clk 0:02:41.4]} 11. dxe5 {[%clk
0:02:50.2]} 11... Nd7 {[%clk 0:02:39.5]} 12. e4 {[%clk 0:02:49.6]} 12... dxe4
{[%clk 0:02:35.3]} 13. Nxe4 {[%clk 0:02:48.2]} 13... Bxe4 {[%clk 0:02:35.2]} 14.
Bxe4 {[%clk 0:02:47.8]} 14... Qc7 {[%clk 0:02:35.1]} 15. Qe2 {[%clk 0:02:31.3]}
15... Rad8 {[%clk 0:02:33.3]} 16. Rad1 {[%clk 0:02:27.2]} 16... Rfe8 {[%clk
0:02:27.7]} 17. Bb1 {[%clk 0:02:26.3]} 17... Nf8 {[%clk 0:02:26.1]} 18. Qe3
{[%clk 0:02:16.8]} 18... Qa5 {[%clk 0:02:25]} 19. Qe4 {[%clk 0:01:39]} 19... Ba3
{[%clk 0:02:23.1]} 20. Bxa3 {[%clk 0:01:29.1]} 20... Qxa3 {[%clk 0:02:24]} 21.
f4 {[%clk 0:01:26.9]} 21... Qb2 {[%clk 0:02:22]} 22. Qc2 {[%clk 0:01:21.2]}
22... Qa1 {[%clk 0:02:08.7]} 23. Kg2 {[%clk 0:01:09.9]} 23... Rd4 {[%clk
0:02:05]} 24. Rxd4 {[%clk 0:01:08.1]} 24... Qxd4 {[%clk 0:02:05.9]} 25. Rd1
{[%clk 0:01:08]} 25... Qb6 {[%clk 0:01:59.9]} 26. Qd3 {[%clk 0:01:03.7]} 26...
a5 {[%clk 0:01:59]} 27. Qd4 {[%clk 0:00:52.7]} 27... Qb4 {[%clk 0:01:58.2]} 28.
Qd6 {[%clk 0:00:48.2]} 28... Ra8 {[%clk 0:01:43.4]} 29. Kh3 {[%clk 0:00:37.1]}
29... g6 {[%clk 0:01:38.5]} 30. Qc7 {[%clk 0:00:30.7]} 30... a4 {[%clk
0:01:33.4]} 31. Bc2 {[%clk 0:00:18.2]} 31... axb3 {[%clk 0:01:32.5]} 32. Bxb3
{[%clk 0:00:16.4]} 32... h5 {[%clk 0:01:30.1]} 33. Kh4 {[%clk 0:00:16.1]} 33...
Kg7 {[%clk 0:01:27.8]} 34. Kh3 {[%clk 0:00:11.1]} 34... Ra7 {[%clk 0:00:56.6]}
35. c5 {[%clk 0:00:11.3]} 35... Qxc5 {[%clk 0:00:55.3]} 36. Rd8 {[%clk
0:00:09.6]} 36... Qf2 {[%clk 0:00:49.7]} 37. Qb8 {[%clk 0:00:09.3]} 37... g5
{[%clk 0:00:46.5]} 38. Rxf8 {[%clk 0:00:08.6]} 38... Qf1# {[%clk 0:00:45.8]} 0-1

[Event "Early-Titled-Tuesday-Blitz-November-28-2023"]
[Site "Chess.com"]
[Date "2023.11.28"]
[Round "2"]
[White "Me_ch_an"]
[Black "wqws"]
[Result "0-1"]
[WhiteElo "2351"]
[BlackElo "2586"]
[TimeControl "180+1"]
[EndTime "8:17:11 PST"]
[Termination "wqws won by resignation"]

1. e4 {[%clk 0:03:00.9]} 1... e5 {[%clk 0:02:59.7]} 2. Nf3 {[%clk 0:03:00.5]}
2... Nc6 {[%clk 0:03:00.3]} 3. Bb5 {[%clk 0:02:59.6]} 3... a6 {[%clk 0:02:58.7]}
4. Ba4 {[%clk 0:02:58.9]} 4... Nf6 {[%clk 0:02:59.2]} 5. Qe2 {[%clk 0:02:59.3]}
5... b5 {[%clk 0:02:59.4]} 6. Bb3 {[%clk 0:02:59.2]} 6... Bc5 {[%clk 0:02:59.9]}
7. c3 {[%clk 0:02:59.5]} 7... O-O {[%clk 0:02:59.7]} 8. O-O {[%clk 0:02:59.7]}
8... d6 {[%clk 0:02:58.3]} 9. Rd1 {[%clk 0:02:59.8]} 9... Re8 {[%clk 0:02:55.5]}
10. d3 {[%clk 0:03:00.1]} 10... h6 {[%clk 0:02:55]} 11. Nbd2 {[%clk 0:03:00.3]}
11... Ne7 {[%clk 0:02:53.5]} 12. Nf1 {[%clk 0:03:00.3]} 12... Ng6 {[%clk
0:02:53.7]} 13. Ng3 {[%clk 0:02:58.5]} 13... Bg4 {[%clk 0:02:49]} 14. h3 {[%clk
0:02:58]} 14... Be6 {[%clk 0:02:47.7]} 15. Bc2 {[%clk 0:02:56.2]} 15... Bb6
{[%clk 0:02:43.2]} 16. d4 {[%clk 0:02:35.5]} 16... exd4 {[%clk 0:02:34.7]} 17.
cxd4 {[%clk 0:02:36.4]} 17... Bc4 {[%clk 0:02:27.9]} 18. Bd3 {[%clk 0:02:33.1]}
18... Bxd3 {[%clk 0:02:08.9]} 19. Qxd3 {[%clk 0:02:34]} 19... c5 {[%clk
0:02:05.2]} 20. d5 {[%clk 0:02:13.7]} 20... c4 {[%clk 0:02:02.1]} 21. Qc2 {[%clk
0:02:11.3]} 21... Qe7 {[%clk 0:02:01.6]} 22. Re1 {[%clk 0:02:08.2]} 22... Ne5
{[%clk 0:02:01.4]} 23. Nh4 {[%clk 0:02:05.1]} 23... Nd3 {[%clk 0:01:59.6]} 24.
Nhf5 {[%clk 0:01:38.9]} 24... Qd7 {[%clk 0:01:56.9]} 25. Re2 {[%clk 0:01:37.5]}
25... Nxe4 {[%clk 0:01:50.7]} 26. Nxh6+ {[%clk 0:01:30.3]} 26... gxh6 {[%clk
0:01:50.2]} 27. Nxe4 {[%clk 0:01:30.7]} 27... Bd4 {[%clk 0:01:42.5]} 28. Bxh6
{[%clk 0:01:26.6]} 28... Qf5 {[%clk 0:01:31.7]} 29. Ng3 {[%clk 0:01:18.9]} 29...
Qg6 {[%clk 0:01:29.6]} 30. Qd2 {[%clk 0:00:32.2]} 30... Qxg3 {[%clk 0:01:26.6]}
31. Be3 {[%clk 0:00:18.3]} 31... Rxe3 {[%clk 0:01:24.3]} 32. fxe3 {[%clk
0:00:13.4]} 32... Be5 {[%clk 0:01:22.7]} 33. Kf1 {[%clk 0:00:03.3]} 33... Qh2
{[%clk 0:01:11.5]} 34. Rf2 {[%clk 0:00:03.7]} 34... Qh1+ {[%clk 0:01:10.2]} 35.
Ke2 {[%clk 0:00:03.2]} 35... Qxa1 {[%clk 0:01:11.1]} 36. e4 {[%clk 0:00:03]}
36... Nxf2 {[%clk 0:01:08.2]} 37. Qg5+ {[%clk 0:00:02.5]} 37... Bg7 {[%clk
0:01:08]} 0-1

[Event "Early-Titled-Tuesday-Blitz-November-28-2023"]
[Site "Chess.com"]
[Date "2023.11.28"]
[Round "2"]
[White "secretsuperstar7"]
[Black "Ezov"]
[Result "0-1"]
[WhiteElo "2476"]
[BlackElo "2250"]
[TimeControl "180+1"]
[EndTime "8:17:12 PST"]
[Termination "Ezov won by resignation"]

1. d4 {[%clk 0:03:00.9]} 1... d5 {[%clk 0:02:58.9]} 2. Nf3 {[%clk 0:02:59.6]}
2... c5 {[%clk 0:02:57.1]} 3. c3 {[%clk 0:02:57.4]} 3... Nc6 {[%clk 0:02:58]} 4.
Bf4 {[%clk 0:02:55.8]} 4... Qb6 {[%clk 0:02:56.3]} 5. Qd2 {[%clk 0:02:50.9]}
5... Nf6 {[%clk 0:02:54.4]} 6. dxc5 {[%clk 0:02:38.3]} 6... Qxc5 {[%clk
0:02:53.3]} 7. e3 {[%clk 0:02:38]} 7... Ne4 {[%clk 0:02:50.1]} 8. Qc2 {[%clk
0:02:31.4]} 8... f6 {[%clk 0:02:47.3]} 9. Bd3 {[%clk 0:02:29.4]} 9... e5 {[%clk
0:02:46.2]} 10. Bxe4 {[%clk 0:02:17.4]} 10... dxe4 {[%clk 0:02:44.6]} 11. Qxe4
{[%clk 0:02:05.5]} 11... f5 {[%clk 0:02:43.9]} 12. Qa4 {[%clk 0:01:52.2]} 12...
exf4 {[%clk 0:02:42.7]} 13. O-O {[%clk 0:01:50.2]} 13... fxe3 {[%clk 0:02:40.4]}
14. fxe3 {[%clk 0:01:48.6]} 14... Be7 {[%clk 0:02:26.5]} 15. Nbd2 {[%clk
0:01:47.4]} 15... O-O {[%clk 0:02:23]} 16. Qb3+ {[%clk 0:01:47.1]} 16... Kh8
{[%clk 0:02:15.8]} 17. Kh1 {[%clk 0:01:46.6]} 17... Na5 {[%clk 0:02:07.4]} 18.
Qc2 {[%clk 0:01:44.4]} 18... Be6 {[%clk 0:02:01.7]} 19. b4 {[%clk 0:01:43.6]}
19... Qc7 {[%clk 0:01:46.6]} 20. bxa5 {[%clk 0:01:42.4]} 20... Rac8 {[%clk
0:01:46.6]} 21. Nd4 {[%clk 0:01:35.6]} 21... Bd7 {[%clk 0:01:42.4]} 22. c4
{[%clk 0:01:21.5]} 22... g6 {[%clk 0:01:39.8]} 23. e4 {[%clk 0:01:17]} 23... Bf6
{[%clk 0:01:38.3]} 24. N2b3 {[%clk 0:01:16.3]} 24... Qxc4 {[%clk 0:01:36.5]} 25.
Qd1 {[%clk 0:01:03.8]} 25... Ba4 {[%clk 0:01:32.9]} 26. Rc1 {[%clk 0:00:59]}
26... Bxb3 {[%clk 0:01:30.6]} 27. Nxb3 {[%clk 0:00:56.3]} 27... Qxe4 {[%clk
0:01:25.2]} 28. Rxc8 {[%clk 0:00:56.1]} 28... Rxc8 {[%clk 0:01:24.9]} 29. Qd7
{[%clk 0:00:55.1]} 29... Qc6 {[%clk 0:01:18]} 30. Qf7 {[%clk 0:00:52.8]} 30...
Bg7 {[%clk 0:01:07.5]} 31. h3 {[%clk 0:00:51]} 31... Rc7 {[%clk 0:01:00.6]} 32.
Nd4 {[%clk 0:00:36.6]} 32... Rxf7 {[%clk 0:00:56.2]} 33. Nxc6 {[%clk 0:00:34.9]}
33... bxc6 {[%clk 0:00:57.1]} 34. Rc1 {[%clk 0:00:35.1]} 34... Rc7 {[%clk
0:00:54.7]} 35. a6 {[%clk 0:00:35.5]} 35... c5 {[%clk 0:00:54.5]} 36. Rb1 {[%clk
0:00:35.9]} 36... Be5 {[%clk 0:00:50.5]} 37. Rb8+ {[%clk 0:00:32.5]} 37... Kg7
{[%clk 0:00:49.7]} 38. Rb7 {[%clk 0:00:33]} 38... Kf6 {[%clk 0:00:49.2]} 39. Kg1
{[%clk 0:00:33.2]} 39... c4 {[%clk 0:00:49.1]} 40. Kf1 {[%clk 0:00:33.1]} 40...
c3 {[%clk 0:00:49.5]} 41. Ke2 {[%clk 0:00:33.6]} 41... c2 {[%clk 0:00:49]} 42.
Rxc7 {[%clk 0:00:32.3]} 42... Bxc7 {[%clk 0:00:47.9]} 43. Kd2 {[%clk 0:00:33]}
43... Ke6 {[%clk 0:00:46.1]} 44. Kxc2 {[%clk 0:00:33.5]} 44... Kd6 {[%clk
0:00:46.5]} 45. Kd3 {[%clk 0:00:33.9]} 45... Kc6 {[%clk 0:00:46.6]} 0-1

[Event "Early-Titled-Tuesday-Blitz-November-28-2023"]
[Site "Chess.com"]
[Date "2023.11.28"]
[Round "2"]
[White "UK_23"]
[Black "Ziyamammadov"]
[Result "0-1"]
[WhiteElo "2398"]
[BlackElo "1859"]
[TimeControl "180+1"]
[EndTime "8:17:12 PST"]
[Termination "Ziyamammadov won on time"]

1. e4 {[%clk 0:03:00.9]} 1... e6 {[%clk 0:02:59.3]} 2. d4 {[%clk 0:03:00.7]}
2... d5 {[%clk 0:02:59.2]} 3. e5 {[%clk 0:03:01.5]} 3... c5 {[%clk 0:02:59]} 4.
c3 {[%clk 0:03:02.3]} 4... Nc6 {[%clk 0:02:58.6]} 5. Nf3 {[%clk 0:03:03]} 5...
Qb6 {[%clk 0:02:58.8]} 6. Be2 {[%clk 0:03:02.8]} 6... cxd4 {[%clk 0:02:58.5]} 7.
cxd4 {[%clk 0:03:03.5]} 7... Bb4+ {[%clk 0:02:55.5]} 8. Nc3 {[%clk 0:03:02.7]}
8... Bxc3+ {[%clk 0:02:55.2]} 9. bxc3 {[%clk 0:03:02.8]} 9... Nge7 {[%clk
0:02:55.6]} 10. Bd3 {[%clk 0:03:00.3]} 10... g6 {[%clk 0:02:53.7]} 11. Bh6
{[%clk 0:02:55.8]} 11... Nf5 {[%clk 0:02:50.2]} 12. Bxf5 {[%clk 0:02:55.5]}
12... exf5 {[%clk 0:02:51.1]} 13. O-O {[%clk 0:02:53.9]} 13... Be6 {[%clk
0:02:50.4]} 14. Bg7 {[%clk 0:02:53.7]} 14... Rg8 {[%clk 0:02:49.9]} 15. Bf6
{[%clk 0:02:54.4]} 15... Qa5 {[%clk 0:02:27]} 16. Qb3 {[%clk 0:02:50.6]} 16...
b6 {[%clk 0:02:23.9]} 17. a4 {[%clk 0:02:39.9]} 17... Rc8 {[%clk 0:02:06.7]} 18.
Rfc1 {[%clk 0:02:37]} 18... a6 {[%clk 0:01:49.7]} 19. h4 {[%clk 0:02:29.7]}
19... Na7 {[%clk 0:01:45.3]} 20. Rab1 {[%clk 0:02:15]} 20... Rc6 {[%clk
0:01:37.9]} 21. Ne1 {[%clk 0:02:01.8]} 21... Kd7 {[%clk 0:01:35.6]} 22. Nd3
{[%clk 0:02:01.4]} 22... Rgc8 {[%clk 0:01:30.1]} 23. Qa3 {[%clk 0:02:01.6]}
23... Re8 {[%clk 0:01:13.3]} 24. Nb4 {[%clk 0:01:59.3]} 24... Rc4 {[%clk
0:01:06.5]} 25. Nxa6 {[%clk 0:01:43.3]} 25... Rc6 {[%clk 0:00:27.9]} 0-1

[Event "Early-Titled-Tuesday-Blitz-November-28-2023"]
[Site "Chess.com"]
[Date "2023.11.28"]
[Round "2"]
[White "vi_pranav"]
[Black "AljoschaFeuerstack"]
[Result "1-0"]
[WhiteElo "3067"]
[BlackElo "2644"]
[TimeControl "180+1"]
[EndTime "8:17:14 PST"]
[Termination "vi_pranav won on time"]

1. e4 {[%clk 0:03:00.9]} 1... c5 {[%clk 0:02:52.3]} 2. Nf3 {[%clk 0:03:00.8]}
2... e6 {[%clk 0:02:52.8]} 3. d4 {[%clk 0:03:00.9]} 3... cxd4 {[%clk 0:02:53.7]}
4. Nxd4 {[%clk 0:03:01.8]} 4... Nf6 {[%clk 0:02:54.2]} 5. Nc3 {[%clk 0:03:02.3]}
5... Nc6 {[%clk 0:02:54.7]} 6. a3 {[%clk 0:03:02.3]} 6... d6 {[%clk 0:02:52.6]}
7. Be2 {[%clk 0:02:49.9]} 7... Be7 {[%clk 0:02:51.6]} 8. O-O {[%clk 0:02:50.5]}
8... O-O {[%clk 0:02:49.5]} 9. Be3 {[%clk 0:02:51.1]} 9... Qc7 {[%clk
0:02:40.9]} 10. f4 {[%clk 0:02:49.6]} 10... Nxd4 {[%clk 0:02:39.7]} 11. Qxd4
{[%clk 0:02:48.4]} 11... b6 {[%clk 0:02:38.8]} 12. Rad1 {[%clk 0:02:42.1]} 12...
Bb7 {[%clk 0:02:35.6]} 13. Bf3 {[%clk 0:02:37.7]} 13... d5 {[%clk 0:02:16.3]}
14. exd5 {[%clk 0:02:32.9]} 14... Bc5 {[%clk 0:02:16.2]} 15. Qd2 {[%clk
0:02:32.7]} 15... Nxd5 {[%clk 0:02:12.4]} 16. Bxd5 {[%clk 0:02:30.9]} 16... exd5
{[%clk 0:02:00.2]} 17. Bd4 {[%clk 0:02:20.5]} 17... Rfe8 {[%clk 0:01:54.9]} 18.
Kh1 {[%clk 0:02:18.1]} 18... Rad8 {[%clk 0:01:35.6]} 19. h3 {[%clk 0:02:03.7]}
19... a6 {[%clk 0:00:56.5]} 20. Rf3 {[%clk 0:01:54.8]} 20... f6 {[%clk 0:00:51]}
21. Rd3 {[%clk 0:01:50.2]} 21... Bd6 {[%clk 0:00:42.5]} 22. Rf3 {[%clk
0:01:44.6]} 22... Rd7 {[%clk 0:00:39.6]} 23. Qf2 {[%clk 0:01:44.2]} 23... Bc5
{[%clk 0:00:38.4]} 24. Kh2 {[%clk 0:01:32.1]} 24... Qc6 {[%clk 0:00:21]} 25. b4
{[%clk 0:01:28.7]} 25... Bd6 {[%clk 0:00:17.4]} 26. Rdd3 {[%clk 0:01:18.5]}
26... Bc7 {[%clk 0:00:12.7]} 27. Kg1 {[%clk 0:01:07.7]} 27... Re4 {[%clk
0:00:13.2]} 28. Rd1 {[%clk 0:01:02.8]} 28... Rde7 {[%clk 0:00:11.7]} 29. Nxe4
{[%clk 0:01:02.5]} 29... dxe4 {[%clk 0:00:11.9]} 30. Re3 {[%clk 0:01:01.2]}
30... Qc4 {[%clk 0:00:08.9]} 31. c3 {[%clk 0:00:57.1]} 31... a5 {[%clk
0:00:08.2]} 32. Qg3 {[%clk 0:00:53.6]} 32... Rd7 {[%clk 0:00:06.1]} 33. Rde1
{[%clk 0:00:52.9]} 33... g5 {[%clk 0:00:05.7]} 34. Rf1 {[%clk 0:00:52.1]} 34...
Kf7 {[%clk 0:00:02.7]} 35. Qg4 {[%clk 0:00:51.3]} 1-0